bitfinex-derivatives/quotes_ETHF0:USTF0_20250224
["timestamp","ask_amount","ask_price","bid_price","bid_amount"]
[1740433659569,3.84815,2645.7,2645.2,0.5399]
[1740433659570,0.75626,2645.3,2645.2,0.5399]
[1740433659769,0.75626,2645.3,2644.7,3.2078]
[1740433659770,3.092,2645.3,2644.7,3.2078]
[1740433659967,4.98268,2645.3,2644.8,0.5399]
[1740433660268,0.75638,2644.9,2644.8,0.5399]
[1740433660467,3.84838,2644.9,2644.8,0.5399]
[1740433660869,0.75644,2644.7,2644.6,0.5468]
[1740433661268,0.75649,2644.5,2644.4,0.5399]
[1740433661667,4.98298,2644.9,2644.4,0.5399]
[1740433661968,1.89117,2644.6,2643.9,3.2078]
[1740433662167,0.75657,2644.3,2643.9,3.2078]
[1740433662365,3.092,2644.5,2644.3,0.75653]
[1740433662569,3.8485,2644.5,2644.2,3.96436]
[1740433662764,3.092,2644.5,2644.2,3.2078]
[1740433662977,0.75657,2644.3,2643.9,3.96446]
[1740433663187,0.75659,2644.2,2643.9,3.2078]
[1740433663372,3.092,2644.5,2643.9,3.2078]
[1740433663767,1.1238,2644.6,2643.9,3.2078]
[1740433663969,0.75655,2644.3,2644.0,0.75664]
[1740433664174,3.093,2644.2,2643.9,3.2078]
[1740433664477,3.84961,2644.2,2643.9,3.2078]
[1740433664673,3.8496,2644.2,2643.9,3.2078]
[1740433664880,3.84959,2644.2,2643.9,3.96446]
[1740433665069,0.75664,2644.0,2643.9,3.2078]
[1740433665277,4.98451,2644.2,2643.5,3.2078]
[1740433665472,0.7567,2643.8,2643.5,3.96457]
[1740433665669,0.75673,2643.7,2643.5,3.2078]
[1740433666172,3.093,2643.8,2643.5,3.2078]
[1740433666374,0.75673,2643.7,2643.5,3.2078]
[1740433666574,0.75675,2643.6,2643.5,3.2078]
[1740433667873,1.89196,2643.5,2643.0,3.2078]
[1740433668069,0.75685,2643.3,2643.0,3.96472]
[1740433668277,3.094,2643.4,2643.0,3.2078]
[1740433668481,3.094,2643.4,2643.2,0.75686]
[1740433668677,3.85082,2643.4,2643.1,0.75689]
[1740433668871,3.094,2643.4,2643.0,3.2078]
[1740433669270,3.094,2643.4,2643.3,0.75684]
[1740433669475,3.094,2643.4,2643.2,0.75686]
[1740433669671,3.094,2643.4,2643.0,3.96471]
[1740433669876,3.094,2643.4,2643.2,0.75686]
[1740433670574,3.85082,2643.4,2643.2,0.75686]
[1740433670882,3.094,2643.4,2643.0,3.2078]
[1740433671180,0.00567054,2643.5,2643.4,0.75681]
[1740433672883,3.094,2644.0,2643.4,0.75681]
[1740433673082,1.89167,2643.9,2642.9,0.5542]
[1740433673377,0.75685,2643.3,2643.1,3.2078]
[1740433673577,3.85176,2643.6,2643.5,0.75678]
[1740433673783,3.095,2643.6,2643.5,0.75678]
[1740433673973,3.095,2643.6,2643.5,3.96458]
[1740433674175,0.75675,2643.7,2643.6,0.75675]
[1740433674486,0.76237054,2643.8,2643.7,0.75672]
[1740433674779,0.76236054,2643.8,2643.6,1.30583]
[1740433675084,0.00567054,2643.8,2643.7,0.75672]
[1740433676187,0.00567054,2643.8,2643.7,1.32372]
[1740433678481,0.00567054,2643.8,2643.6,0.5491]
[1740433678682,0.00567054,2643.8,2643.3,0.00567054]
[1740433678683,0.75681,2643.4,2643.3,0.00567054]
[1740433678980,1.8921,2643.3,2641.8,3.2078]
[1740433679188,0.75713,2642.3,2642.1,3.96497]
[1740433679378,0.75709,2642.5,2642.3,0.75711]
[1740433679579,0.75708,2642.5,2642.3,0.75711]
[1740433679774,3.095,2642.6,2642.1,3.2078]
[1740433679978,0.75713,2642.3,2642.1,0.75718]
[1740433680184,3.095,2642.6,2642.1,3.2078]
[1740433680482,0.75715,2642.2,2642.1,3.2078]
[1740433680688,0.75712,2642.4,2642.1,3.96496]
[1740433681003,0.75707,2642.5,2641.8,4.3319]
[1740433681485,3.2078,2642.4,2641.7,3.2078]
[1740433681676,3.2078,2642.4,2641.3,3.00952936]
[1740433681677,0.75728,2641.8,2641.4,3.2078]
[1740433681880,1.89282,2642.3,2641.4,3.2078]
[1740433681881,3.095,2641.9,2641.4,3.2078]
[1740433682181,3.095,2641.9,2641.1,3.2078]
[1740433682388,0.75757,2640.8,2640.5,3.2078]
[1740433682687,3.1,2640.7,2640.1,3.2078]
[1740433683185,3.2078,2640.5,2639.8,0.5708]
[1740433683687,6.3108,2640.4,2639.3,3.2078]
[1740433683881,3.2078,2640.1,2639.3,3.2078]
[1740433684081,0.7578,2640.0,2639.3,3.2078]
[1740433684388,3.116,2641.1,2639.9,3.2078]
[1740433684686,3.116,2641.1,2640.8,3.96535]
[1740433684888,3.121,2641.0,2640.5,3.2078]
[1740433686189,3.121,2641.0,2640.1,1.1649]
[1740433686190,3.50897144,2641.4,2640.8,3.96535]
[1740433686384,3.138,2641.1,2640.8,3.2078]
[1740433686580,3.138,2641.1,2640.8,3.96535]
[1740433686878,3.138,2641.1,2640.8,3.2078]
[1740433687082,3.138,2641.1,2640.5,3.2078]
[1740433688089,0.7575,2641.0,2640.5,3.2078]
[1740433688280,3.138,2641.1,2640.5,3.2078]
[1740433688487,0.76321054,2640.9,2640.5,3.96544]
[1740433688791,0.76321054,2640.9,2640.5,3.2078]
[1740433688792,0.75757,2640.8,2640.5,3.2078]
[1740433688987,3.148,2640.7,2640.5,3.2078]
[1740433689387,3.148,2640.7,2640.6,0.75761]
[1740433690091,0.00567054,2640.9,2640.5,3.2078]
[1740433690388,0.00567054,2640.9,2640.8,3.2078]
[1740433690595,0.00567054,2640.9,2640.8,0.75755]
[1740433690794,0.00567054,2640.9,2640.8,3.2078]
[1740433691091,0.00567054,2640.9,2640.8,3.96535]
[1740433692496,0.00567054,2640.9,2640.5,3.2078]
[1740433692796,1.89951054,2640.9,2640.2,3.2078]
[1740433692990,0.00567054,2640.9,2640.2,3.2078]
[1740433693198,0.75763,2640.6,2640.3,0.7577]
[1740433693494,3.148,2640.7,2639.9,3.2078]
[1740433693797,0.75774,2640.2,2639.9,3.2078]
[1740433693991,3.15,2640.1,2639.9,3.2078]
[1740433694192,3.15,2640.1,2639.9,3.9656]
[1740433694393,3.15,2640.1,2640.0,0.75778]
[1740433694592,3.15,2640.1,2639.9,3.2078]
[1740433694786,0.75778,2640.0,2639.9,3.2078]
[1740433694988,3.15,2640.1,2639.9,3.2078]
[1740433695388,0.75778,2640.0,2639.9,3.2078]
[1740433695696,0.75778,2640.0,2639.2,2.48711]
[1740433695697,9.15,2640.1,2638.6,3.2078]
[1740433695889,3.2078,2639.6,2638.9,3.2078]
[1740433696095,3.157,2639.5,2638.9,3.2078]
[1740433696298,3.1626815,2639.5,2639.0,0.75807]
[1740433696495,3.1626815,2639.5,2638.9,3.2078]
[1740433696693,0.758,2639.3,2638.9,3.2078]
[1740433696897,0.758,2639.3,2638.9,3.96588]
[1740433697196,3.1626815,2639.5,2638.9,3.2078]
[1740433697499,0.75805,2639.1,2638.9,3.2078]
[1740433697689,3.1626815,2639.5,2639.3,0.75797]
[1740433697890,0.0056815,2639.5,2639.2,3.2078]
[1740433698098,3.2078,2640.5,2639.2,6.3638]
[1740433698392,0.5391,2640.7,2640.1,3.2078]
[1740433698603,3.91865,2640.5,2640.1,3.2078]
[1740433698897,4.3471,2640.8,2640.4,3.2078]
[1740433698898,3.161,2640.6,2640.4,3.2078]
[1740433699095,3.161,2640.6,2640.4,3.96545]
[1740433699300,3.162,2641.0,2640.5,0.75764]
[1740433699498,4.3093,2641.4,2640.5,0.75764]
[1740433699499,3.7421,2641.4,2640.7,3.2078]
[1740433699697,0.5721,2641.5,2641.0,3.2078]
[1740433699997,3.165,2641.7,2641.4,3.2078]
[1740433700197,0.7630315,2641.5,2641.4,3.2078]
[1740433700719,3.2134815,2641.5,2640.4,3.2078]
[1740433700998,1.89381,2641.0,2640.0,3.2078]
[1740433701198,0.7576,2640.7,2640.3,5.09358]
[1740433701390,1.89389,2640.8,2640.3,0.5471]
[1740433701588,3.169,2640.9,2640.3,0.5471]
[1740433701790,3.93157,2640.8,2640.6,3.2078]
[1740433701995,3.174,2640.8,2640.6,3.2078]
[1740433702796,0.75758,2640.7,2640.6,3.2078]
[1740433703102,3.174,2640.8,2640.3,0.5471]
[1740433703502,0.75762,2640.6,2640.3,0.5471]
[1740433703699,3.174,2640.8,2640.3,0.5471]
[1740433703999,3.174,2640.8,2640.2,3.2134815]
[1740433704000,0.75768,2640.4,2640.2,3.2134815]
[1740433704397,0.75762,2640.6,2640.2,3.9711915]
[1740433704700,3.172,2640.7,2640.2,3.2134815]
[1740433705004,0.7577,2640.3,2640.2,0.0056815]
[1740433705198,3.9277,2640.3,2640.2,0.0056815]
[1740433707499,3.9277,2640.3,2639.4,3.7618]
[1740433707500,6.3778,2640.3,2639.4,3.7618]
[1740433707695,3.2078,2640.0,2639.5,0.54744901]
[1740433707899,3.2078,2639.7,2639.2,0.5764]
[1740433708097,3.2078,2639.7,2639.3,0.54750309]
[1740433708305,0.75796,2639.4,2639.2,0.5764]
[1740433708500,3.92796,2639.4,2639.3,0.54873032]
[1740433709005,0.75796,2639.4,2639.3,3.75652205]
[1740433709207,0.0056815,2639.6,2639.3,3.75652205]
[1740433709501,0.0056815,2639.6,2639.5,0.75793]
[1740433709703,0.0056815,2639.6,2639.5,0.54872205]
[1740433709908,0.7635815,2639.6,2639.5,0.54872205]
[1740433710604,0.7635815,2639.6,2639.5,0.54909031]
[1740433710806,0.7635815,2639.6,2639.5,0.54910265]
[1740433711305,0.0056815,2639.6,2639.2,3.2078]
[1740433711607,0.75798,2639.4,2639.3,0.54903408]
[1740433712505,0.75796,2639.4,2639.3,0.54965786]
[1740433713213,3.92894,2639.5,2639.3,1.30763786]
[1740433713407,3.92893,2639.5,2639.4,0.54965786]
[1740433713808,0.75793,2639.5,2639.4,0.54965786]
[1740433714107,0.0056815,2639.6,2639.4,0.54965786]
[1740433714304,0.7636115,2639.6,2639.5,3.75745786]
[1740433714498,0.0056815,2639.6,2639.5,4.51520889]
[1740433714905,3.164,2640.2,2640.1,0.75775]
[1740433715105,3.164,2640.2,2640.1,1.30717122]
[1740433715506,3.92173,2640.2,2640.1,1.30717122]
[1740433715804,3.92173,2640.2,2640.1,0.54942122]
[1740433716007,1.89446,2640.0,2639.6,1.1842]
[1740433716202,0.75787,2639.7,2639.6,0.5919]
[1740433716405,3.166,2639.8,2639.5,0.0056815]
[1740433716601,0.7579,2639.6,2639.5,0.0056815]
[1740433716807,1.05937398,2639.6,2639.5,0.0056815]
[1740433717200,0.7579,2639.6,2639.5,0.0056815]
[1740433717911,3.9657,2639.6,2639.5,0.0056815]
[1740433718209,4.5193,2639.6,2639.5,0.0056815]
[1740433718712,0.75807,2639.0,2638.9,0.5591]
[1740433719007,0.75807,2639.0,2638.9,0.54942718]
[1740433720112,3.172,2639.2,2638.7,3.2078]
[1740433720314,0.7581,2638.9,2638.8,0.54930357]
[1740433720614,0.75813,2638.8,2638.7,3.2078]
[1740433720813,0.75813,2638.8,2638.7,3.75700294]
[1740433721519,0.75821,2638.5,2638.4,1.1346]
[1740433721815,0.75821,2638.5,2638.4,1.68381168]
[1740433722418,3.169,2638.8,2638.4,1.68381168]
[1740433722619,0.75816,2638.7,2638.5,0.54921168]
[1740433722817,0.75816,2638.7,2638.6,0.54921168]
[1740433723512,3.169,2638.8,2638.7,0.75816]
[1740433723715,3.169,2638.8,2638.7,0.54921168]
[1740433724307,3.92713,2638.8,2638.7,0.54921168]
[1740433724514,3.169,2638.8,2638.7,0.54921168]
[1740433724716,3.92713,2638.8,2638.7,0.54921168]
[1740433724914,0.0056815,2639.0,2638.7,0.54921168]
[1740433725119,0.0056815,2639.0,2638.9,3.9659]
[1740433725321,0.0056815,2639.0,2638.9,4.51485098]
[1740433726718,3.166,2640.1,2638.9,9.75675098]
[1740433726916,1.1005,2640.6,2639.7,3.2078]
[1740433727120,0.5853,2640.9,2640.3,3.2078]
[1740433727320,0.75765,2640.5,2640.4,0.54867317]
[1740433727520,6.9651,2640.9,2639.8,3.7725]
[1740433727821,3.2134815,2640.6,2640.1,0.0056815]
[1740433728011,3.173,2640.5,2640.1,0.0056815]
[1740433728216,0.0056815,2640.6,2640.5,0.75764]
[1740433728417,0.0056815,2640.6,2640.5,3.96544]
[1740433728826,3.93146,2641.2,2640.5,9.2078]
[1740433729021,0.75747,2641.1,2640.9,3.2078]
[1740433729328,0.75747,2641.1,2640.9,3.96531]
[1740433729513,0.7575,2641.0,2640.9,3.2078]
[1740433729713,3.174,2641.2,2640.4,3.2078]
[1740433729923,3.174,2641.2,2640.7,0.75756]
[1740433730113,0.0056815,2641.1,2640.5,1.89411]
[1740433730315,0.0056815,2641.1,2640.7,3.2078]
[1740433730515,0.0056815,2641.1,2641.0,0.7575]
[1740433730725,3.1796815,2641.1,2641.0,0.7575]
[1740433731522,0.0056815,2641.1,2641.0,0.7575]
[1740433732425,0.0056815,2641.1,2640.8,3.2078]
[1740433732729,1.89389,2640.8,2640.1,0.0056815]
[1740433732926,1.89396,2640.7,2640.1,0.0056815]
[1740433733129,0.75773,2640.2,2640.1,0.0056815]
[1740433733528,3.2078,2640.6,2640.1,0.0056815]
[1740433733529,3.178,2640.3,2640.1,0.0056815]
[1740433733923,3.178,2640.3,2640.1,0.7634115]
[1740433734124,3.178,2640.3,2640.2,0.75773]
[1740433735130,3.9357,2640.3,2640.2,0.75773]
[1740433735325,0.75773,2640.2,2640.1,0.0056815]
[1740433735632,1.89467,2639.8,2638.9,24.2268]
[1740433735837,3.179,2639.7,2639.1,0.75802]
[1740433736038,3.179,2639.7,2638.9,3.2078]
[1740433736233,3.179,2639.7,2639.0,0.75805]
[1740433736429,3.179,2639.7,2639.2,3.2078]
[1740433736623,1.89475,2639.6,2638.8,3.2078]
[1740433736828,3.2078,2639.2,2638.7,0.591]
[1740433737130,0.75808,2639.0,2638.9,0.0056815]
[1740433737329,3.182,2639.1,2638.9,0.0056815]
[1740433737536,3.94006,2639.1,2638.9,0.0056815]
[1740433737733,0.75807,2639.0,2638.9,0.0056815]
[1740433739344,3.94007,2639.1,2638.9,0.0056815]
[1740433739535,0.75807,2639.0,2638.9,0.0056815]
[1740433740435,3.185,2639.0,2638.9,0.0056815]
[1740433740634,1.34767,2639.4,2639.0,0.75807]
[1740433740830,3.942,2639.3,2638.9,0.7637715]
[1740433741034,3.184,2639.3,2638.9,0.7637715]
[1740433741234,3.184,2639.3,2638.9,0.0056815]
[1740433741439,0.75805,2639.1,2638.9,0.0056815]
[1740433741635,0.75807,2639.0,2638.9,0.0056815]
[1740433742635,3.2078,2639.2,2638.9,0.0056815]
[1740433742830,0.75806,2639.1,2638.9,0.0056815]
[1740433743037,3.184,2639.3,2638.9,0.0056815]
[1740433743431,3.179,2639.5,2639.4,0.75796]
[1740433743637,3.179,2639.5,2639.4,3.96576]
[1740433743839,0.0056815,2639.7,2639.6,0.7579]
[1740433745836,0.75791,2639.6,2639.4,3.96574]
[1740433746042,0.7635715,2639.7,2639.5,0.75792]
[1740433746443,0.75791,2639.6,2639.4,3.96575]
[1740433746646,0.0056815,2639.7,2639.0,1.1606]
[1740433746944,0.75791,2639.6,2639.4,0.75795]
[1740433747142,0.75793,2639.5,2639.3,0.75797]
[1740433747347,0.7635715,2639.7,2639.2,3.2078]
[1740433747551,0.75798,2639.3,2639.2,3.2078]
[1740433747741,0.75798,2639.4,2639.1,0.75804]
[1740433747941,3.175,2639.6,2639.0,1.1606]
[1740433748144,0.75793,2639.5,2639.3,0.75797]
[1740433748544,3.5536,2639.6,2638.9,3.2134815]
[1740433748946,0.758,2639.3,2639.1,0.75803]
[1740433749143,3.2134815,2639.7,2638.9,3.2134815]
[1740433749448,3.175,2639.6,2639.2,3.2078]
[1740433749650,0.75798,2639.3,2639.2,3.2078]
[1740433749950,3.175,2639.6,2639.5,0.75793]
[1740433750154,3.175,2639.6,2639.4,0.75794]
[1740433750450,0.75797,2639.4,2639.3,0.75798]
[1740433750751,0.75794,2639.5,2639.3,0.75798]
[1740433751346,0.75796,2639.4,2639.3,0.75796]
[1740433751547,0.75793,2639.5,2639.4,0.75795]
[1740433752053,0.75798,2639.4,2639.2,3.9658]
[1740433752747,3.175,2639.6,2639.2,3.9658]
[1740433752950,3.175,2639.6,2639.5,0.75793]
[1740433753150,3.175,2639.6,2639.4,0.75794]
[1740433753351,0.75793,2639.5,2639.4,0.75794]
[1740433753652,3.175,2639.6,2639.5,0.75793]
[1740433754151,3.175,2639.6,2639.2,3.2078]
[1740433755052,3.5536,2639.6,2639.2,3.2078]
[1740433755554,3.175,2639.6,2639.2,3.2078]
[1740433755955,3.175,2639.6,2639.0,0.5758]
[1740433756154,3.7265,2639.6,2639.0,0.5758]
[1740433756542,4.1051,2639.6,2639.0,0.5758]
[1740433757556,3.175,2639.6,2639.1,3.2078]
[1740433757752,3.175,2639.6,2639.0,3.7836]
[1740433758355,3.175,2639.6,2639.3,3.2078]
[1740433758856,0.0056815,2639.7,2639.3,3.2078]
[1740433759451,0.0056815,2639.7,2639.1,0.5708]
[1740433760352,0.0056815,2639.7,2639.3,3.2078]
[1740433761855,0.0056815,2639.7,2639.4,3.2078]
[1740433762053,0.0056815,2639.7,2639.1,3.7786]
[1740433762455,0.0056815,2639.7,2639.1,3.2078]
[1740433763359,0.0056815,2639.7,2639.4,3.2078]
[1740433767158,3.2078,2640.5,2639.5,3.159]
[1740433767466,0.75749,2641.1,2641.0,0.75749]
[1740433767664,3.50784571,2641.3,2640.7,3.2078]
[1740433767961,3.50784571,2641.3,2640.7,3.96536]
[1740433767962,0.75755,2640.8,2640.7,3.96536]
[1740433768159,0.75741,2641.3,2640.8,1.89389]
[1740433768467,3.2078,2641.7,2641.1,5.10145]
[1740433768767,1.89292,2642.2,2641.6,0.75731]
[1740433768768,3.2078,2642.1,2641.6,0.75731]
[1740433769063,0.0056815,2641.7,2641.6,0.75731]
[1740433769364,0.0056815,2641.7,2641.2,0.538]
[1740433769561,0.75733,2641.6,2641.2,0.538]
[1740433769762,0.0056815,2641.7,2641.4,3.2078]
[1740433769960,5.10119,2641.5,2640.9,0.7575]
[1740433770164,5.10119,2641.5,2640.8,3.2078]
[1740433770359,3.2078,2641.5,2640.8,3.2078]
[1740433770560,0.0056815,2641.7,2640.8,3.2078]
[1740433770961,0.75743,2641.3,2640.8,3.2078]
[1740433771270,0.75746,2641.2,2641.0,0.75749]
[1740433771467,0.75743,2641.3,2641.1,0.75746]
[1740433771767,3.162,2641.5,2640.8,3.2078]
[1740433771962,3.1656815,2641.7,2641.1,1.89361]
[1740433772155,3.1656815,2641.7,2640.7,0.5372]
[1740433772156,0.0056815,2641.7,2641.4,3.2078]
[1740433772358,0.0056815,2641.7,2641.6,0.75732]
[1740433772559,0.0056815,2641.7,2641.4,3.2078]
[1740433772764,0.0056815,2641.7,2641.4,0.75737]
[1740433772765,0.75734,2641.6,2641.4,0.75737]
[1740433772968,0.0056815,2641.7,2641.0,6.3688]
[1740433773267,0.0056815,2641.7,2641.6,0.75732]
[1740433774270,0.0056815,2641.7,2641.6,3.96512]
[1740433775167,3.157,2642.6,2641.6,9.2078]
[1740433775360,3.157,2642.6,2642.2,3.2078]
[1740433775559,0.75707,2642.5,2641.9,0.75722]
[1740433775761,3.157,2642.6,2641.5,3.2078]
[1740433775970,0.75731,2641.7,2641.5,3.96513]
[1740433776268,0.75735,2641.5,2641.4,0.5555]
[1740433776768,0.75734,2641.6,2641.4,1.31288]
[1740433777069,0.0056815,2641.9,2641.6,0.75732]
[1740433777366,0.0056815,2641.9,2641.8,0.75727]
[1740433777670,0.0056815,2641.9,2641.8,3.96507]
[1740433779476,0.0056815,2641.9,2641.5,3.2078]
[1740433779664,0.75732,2641.6,2641.4,0.5555]
[1740433779864,0.75731,2641.7,2641.5,0.75734]
[1740433780270,0.0056815,2641.9,2641.4,0.5555]
[1740433780471,0.0056815,2641.9,2641.6,3.2078]
[1740433780663,0.75738,2641.4,2641.3,0.0056815]
[1740433781568,3.93138,2641.4,2641.3,0.0056815]
[1740433785872,0.75761,2640.6,2640.5,1.1572]
[1740433786176,0.75761,2640.6,2639.9,24.7123]
[1740433786177,0.75769,2640.4,2640.1,3.2078]
[1740433786368,0.75769,2640.4,2640.2,0.75771]
[1740433786564,0.75775,2640.1,2640.0,0.5747]
[1740433786763,0.75774,2640.2,2640.0,0.5747]
[1740433787070,3.1746815,2640.4,2640.0,0.5747]
[1740433787375,0.75773,2640.2,2640.0,1.33247]
[1740433787675,3.1746815,2640.4,2640.0,0.5747]
[1740433788070,0.75775,2640.1,2640.0,0.5747]
[1740433788871,3.1746815,2640.4,2640.0,0.5747]
[1740433789078,3.1746815,2640.4,2640.1,3.2078]
[1740433789372,0.75774,2640.2,2640.0,0.5747]
[1740433789575,0.75774,2640.2,2640.1,0.75775]
[1740433789979,0.75774,2640.2,2640.1,3.2078]
[1740433790172,0.75772,2640.3,2640.1,3.96553]
[1740433790373,0.75773,2640.2,2640.1,3.2078]
[1740433790567,0.75773,2640.2,2640.1,3.96555]
[1740433790874,0.0056815,2640.4,2640.1,3.2078]
[1740433791178,0.0056815,2640.4,2640.3,0.7577]
[1740433791373,3.161,2641.0,2640.8,0.75754]
[1740433791674,0.75757,2640.8,2640.7,0.75756]
[1740433791871,0.75757,2640.8,2640.7,33.35756]
[1740433792073,0.75757,2640.8,2640.7,32.6]
[1740433792270,3.161,2641.0,2640.6,3.2078]
[1740433792676,3.1666815,2641.0,2640.6,3.2078]
[1740433793277,3.2078,2640.8,2640.0,0.5747]
[1740433793478,3.2078,2640.8,2640.2,3.2078]
[1740433794576,3.2078,2640.8,2640.0,0.5747]
[1740433794783,0.5763,2640.7,2640.2,3.2078]
[1740433795369,0.5763,2640.7,2640.0,0.5747]
[1740433795576,3.17,2640.7,2640.2,3.2078]
[1740433798884,6.9111,2640.8,2640.2,3.2078]
[1740433799076,6.3718,2640.8,2640.2,3.2078]
[1740433801993,6.3718,2640.8,2640.0,0.5747]
[1740433802585,6.3718,2640.8,2640.1,3.2078]
[1740433802785,6.3658,2640.8,2640.5,0.00543236]
[1740433804284,1.1025,2640.7,2640.5,0.00543236]
[1740433804787,0.5791,2640.6,2640.5,0.00543236]
[1740433806390,3.2078,2640.8,2640.5,0.00543236]
[1740433806693,6.3658,2640.8,2640.5,0.00543236]
[1740433807085,0.5791,2640.7,2640.5,0.00543236]
[1740433809189,0.3786,2640.6,2640.5,0.00543236]
[1740433809387,0.5791,2640.7,2640.5,0.00543236]
[1740433810397,3.7301,2640.7,2640.5,0.00543236]
[1740433810686,3.151,2640.7,2640.5,0.00543236]
[1740433810880,3.2078,2640.8,2640.5,0.00543236]
[1740433811685,3.2078,2640.8,2640.5,2.36e-06]
[1740433811994,3.2078,2640.8,2639.8,0.0056815]
[1740433812186,3.2078,2640.4,2639.8,0.0056815]
[1740433812383,3.155,2640.5,2639.9,3.2078]
[1740433812892,3.155,2640.5,2639.8,0.0056815]
[1740433813081,0.0056815,2641.0,2639.8,0.0056815]
[1740433813082,0.0056815,2641.0,2640.2,3.2078]
[1740433813287,0.0056815,2641.0,2640.5,3.2078]
[1740433814392,0.0056815,2641.0,2640.9,3.96532]
[1740433815290,0.7631815,2641.0,2640.9,3.2078]
[1740433815587,1.89389,2640.8,2640.3,5.08009]
[1740433815793,0.75765,2640.5,2640.4,0.75766]
[1740433815996,0.75767,2640.4,2640.3,4.3224]
[1740433816286,0.75767,2640.4,2640.3,0.5447]
[1740433816695,3.0504615,2641.0,2640.3,3.7525]
[1740433816997,0.75762,2640.6,2640.3,3.7525]
[1740433817295,4.3176815,2641.0,2640.3,3.7525]
[1740433817593,0.75763,2640.6,2640.4,0.75766]
[1740433817781,0.75754,2640.9,2640.7,0.75757]
[1740433817984,0.0056815,2641.0,2640.6,3.2078]
[1740433818393,0.75754,2640.9,2640.7,0.75757]
[1740433818888,0.0056815,2641.0,2640.9,0.75752]
[1740433819089,0.0056815,2641.0,2640.9,3.96532]
[1740433819593,0.0056815,2641.0,2640.9,0.75752]
[1740433823395,3.2078,2642.1,2640.9,6.0]
[1740433823590,0.75726,2641.9,2641.8,0.75724]
[1740433823986,3.2078,2642.1,2641.5,1.89339]
[1740433824190,3.6882,2642.2,2641.8,3.2078]
[1740433824387,0.75723,2642.0,2641.9,0.75721]
[1740433825391,0.0056815,2642.3,2641.7,0.5756815]
[1740433825693,3.2078,2642.1,2641.7,1.5e-06]
[1740433825896,3.2078,2641.8,2640.7,3.2078]
[1740433826192,1.89353,2641.3,2640.4,3.2078]
[1740433826396,1.89368,2641.1,2640.4,3.2078]
[1740433826597,1.89375,2641.0,2640.5,0.5484]
[1740433826896,0.75761,2640.6,2640.5,0.5484]
[1740433827095,0.75761,2640.6,2640.5,0.5540815]
[1740433827292,0.75761,2640.6,2640.5,0.0056815]
[1740433828297,3.93561,2640.6,2640.5,0.0056815]
[1740433828592,3.179,2640.7,2640.5,0.0056815]
[1740433829095,3.93658,2640.7,2640.5,0.7633115]
[1740433829497,3.179,2640.7,2640.5,0.0056815]
[1740433829797,0.75786,2639.8,2639.6,3.2078]
[1740433829995,3.2078,2640.0,2639.3,0.5729]
[1740433830202,3.18,2640.0,2639.3,0.5729]
[1740433830401,3.18,2640.0,2639.5,0.75793]
[1740433830695,0.75781,2639.9,2639.3,0.5729]
[1740433830901,3.18,2640.0,2639.3,0.5729]
[1740433831098,0.75786,2639.8,2639.5,3.2078]
[1740433831306,0.75783,2639.9,2639.6,3.2078]
[1740433831495,0.75793,2639.5,2639.3,3.7863815]
[1740433831902,0.75792,2639.6,2639.3,3.7863815]
[1740433832101,0.7579,2639.7,2639.3,3.7863815]
[1740433832302,0.75791,2639.6,2639.3,4.5443515]
[1740433832498,6.3878,2640.0,2639.3,3.7863815]
[1740433832696,0.75795,2639.5,2639.3,3.7863815]
[1740433832896,1.89454,2639.9,2639.3,3.7863815]
[1740433833400,0.5669,2639.8,2639.3,3.7863815]
[1740433833603,0.75794,2639.5,2639.3,3.7863815]
[1740433833793,0.5669,2639.8,2639.3,3.7863815]
[1740433833993,0.75796,2639.4,2639.3,3.7863815]
[1740433834199,0.75794,2639.5,2639.3,3.7863815]
[1740433834391,0.75791,2639.6,2639.3,4.5443515]
[1740433834605,0.75793,2639.5,2639.3,3.7863815]
[1740433834906,0.5669,2639.8,2639.3,4.5443515]
[1740433835300,0.75793,2639.6,2639.3,4.5443515]
[1740433835499,0.75788,2639.7,2639.4,0.75794]
[1740433836104,3.2078,2640.7,2639.6,3.2078]
[1740433836406,3.2078,2640.4,2639.6,3.2078]
[1740433836799,0.75787,2639.7,2639.6,3.2078]
[1740433837304,1.1454,2640.0,2639.6,3.2078]
[1740433837699,3.175,2640.1,2639.9,3.2078]
[1740433837899,0.75783,2639.9,2639.6,0.75789]
[1740433838106,3.175,2640.1,2639.5,3.2078]
[1740433838505,3.175,2640.1,2640.0,0.75778]
[1740433838706,0.5372,2640.2,2639.9,3.2078]
[1740433838905,0.5372,2640.2,2640.1,0.75775]
[1740433839405,0.5372,2640.2,2639.9,3.2078]
[1740433839406,0.5372,2640.2,2640.0,0.75776]
[1740433839609,0.5372,2640.2,2640.1,0.75775]
[1740433839806,3.181,2640.3,2640.2,0.75773]
[1740433840008,0.75765,2640.5,2640.3,0.75768]
[1740433840207,3.759,2640.6,2640.0,1.89446]
[1740433840407,0.75764,2640.5,2640.4,0.75766]
[1740433840604,0.75764,2640.5,2640.2,3.2078]
[1740433840908,0.75764,2640.5,2640.3,0.75768]
[1740433841207,4.51663,2640.6,2640.4,0.75766]
[1740433841709,0.75765,2640.5,2640.2,3.2078]
[1740433842008,0.75765,2640.5,2640.3,0.75768]
[1740433842307,0.75765,2640.5,2640.4,0.75767]
[1740433842499,0.75765,2640.5,2640.3,0.75767]
[1740433842699,0.75765,2640.5,2640.2,3.2078]
[1740433842902,0.75765,2640.5,2640.4,0.75767]
[1740433843108,0.75765,2640.5,2640.2,3.2078]
[1740433843310,3.759,2640.6,2640.4,0.75766]
[1740433843514,3.759,2640.6,2640.5,0.75764]